bitfinex-derivatives/quotes_ETHF0:USTF0_20250606
["timestamp","ask_amount","ask_price","bid_price","bid_amount"]
[1749191138241,0.00400231,2455.7,2455.6,8.79116142]
[1749191138455,0.00400231,2455.7,2455.6,6.36243351]
[1749191140048,0.00400231,2455.7,2455.6,7.69723351]
[1749191143754,0.00400231,2455.7,2455.6,10.90503351]
[1749191144153,0.00400231,2455.7,2455.6,7.69723351]
[1749191144354,0.00400231,2455.7,2455.6,8.6593386]
[1749191144554,3.21180231,2455.7,2455.6,8.6593386]
[1749191144754,3.21180231,2455.7,2455.6,6.22843351]
[1749191145851,3.21180231,2455.7,2455.6,8.6593386]
[1749191147761,3.21180231,2455.7,2455.6,2.5022386]
[1749191148058,3.21180231,2455.7,2455.6,0.07133351]
[1749191148059,9.02586231,2455.7,2455.6,0.07133351]
[1749191148462,4.02586231,2455.7,2455.6,0.07133351]
[1749191149457,3.57098492,2456.7,2455.6,0.07133351]
[1749191149661,0.6583,2456.8,2456.3,2.43090509]
[1749191149963,2.74422,2456.8,2456.4,3.24471509]
[1749191150267,2.74422,2456.8,2456.5,0.8138]
[1749191150563,0.8138,2456.5,2456.3,2.43090509]
[1749191150751,3.2078,2456.6,2456.2,10.98170509]
[1749191150952,1.2722,2456.5,2456.3,0.81386]
[1749191151553,2.08602,2456.5,2456.2,11.79560509]
[1749191151859,0.6954,2456.4,2456.2,9.3647]
[1749191152059,1.3032,2456.3,2456.2,9.3647]
[1749191152261,2.0016,2456.3,2456.2,9.3647]
[1749191152461,2.0016,2456.3,2456.2,6.1569]
[1749191153659,2.0016,2456.3,2456.2,5.343]
[1749191154062,0.6984,2456.3,2456.2,5.343]
[1749191154261,0.6984,2456.3,2456.1,2.43090509]
[1749191154464,0.6984,2456.3,2456.1,3.24483509]
[1749191154864,0.6984,2456.3,2456.1,0.81393]
[1749191155360,0.6984,2456.3,2456.2,0.8139]
[1749191155665,0.6984,2456.3,2456.1,0.81392]
[1749191156367,1.51227,2456.3,2456.1,0.81392]
[1749191156576,1.51227,2456.3,2456.0,8.58784509]
[1749191156870,0.6984,2456.3,2456.1,0.81393]
[1749191157374,1.51227,2456.3,2456.0,8.58784509]
[1749191157577,0.81391,2456.2,2456.0,7.77390509]
[1749191157876,2.11511,2456.2,2456.0,7.77390509]
[1749191158371,0.6984,2456.3,2456.1,0.81393]
[1749191158578,1.51228,2456.3,2456.1,0.81393]
[1749191158877,0.81391,2456.2,2456.0,3.24485509]
[1749191159479,2.88148,2456.3,2456.1,2.43090509]
[1749191159678,3.2078,2456.6,2456.1,2.43090509]
[1749191159880,0.81388,2456.3,2456.1,3.24481509]
[1749191160272,0.81385,2456.4,2456.2,0.8139]
[1749191160577,2.0379,2456.5,2456.1,3.24482509]
[1749191160578,0.81388,2456.3,2456.1,3.24482509]
[1749191160778,1.3692,2456.4,2456.1,2.43090509]
[1749191161077,0.81389,2456.3,2456.1,3.24483509]
[1749191161778,1.3692,2456.4,2456.1,2.43090509]
[1749191162075,0.8139,2456.2,2456.1,2.43090509]
[1749191162277,0.81389,2456.3,2456.1,3.24483509]
[1749191163382,0.8139,2456.2,2456.1,2.43090509]
[1749191163578,1.3692,2456.4,2456.1,2.43090509]
[1749191163880,0.81388,2456.3,2456.1,3.24482509]
[1749191165279,0.8139,2456.2,2456.1,3.24483509]
[1749191165582,1.3692,2456.4,2456.1,2.43090509]
[1749191165782,0.81388,2456.3,2456.1,3.24483509]
[1749191165985,0.81388,2456.3,2456.1,3.3161686]
[1749191166385,0.81387,2456.3,2456.1,2.5022386]
[1749191166588,0.81387,2456.3,2456.1,3.3161586]
[1749191166789,0.8139,2456.2,2456.1,2.5022386]
[1749191167277,9.0217,2456.2,2456.1,0.07133351]
[1749191168281,4.0217,2456.2,2456.1,0.07133351]
[1749191168787,5.293,2456.3,2456.1,0.88523351]
[1749191168980,7.2854,2456.5,2456.1,0.07133351]
[1749191169182,0.81389,2456.3,2456.1,0.88525351]
[1749191169682,0.8139,2456.2,2456.1,0.07133351]
[1749191169887,2.1376,2456.2,2456.1,3.51e-06]
[1749191170077,8.05278824,2456.2,2456.1,3.51e-06]
[1749191172887,13.34578824,2456.2,2456.1,3.51e-06]
[1749191173289,8.05278824,2456.2,2456.1,3.51e-06]
[1749191173494,13.34578824,2456.2,2456.1,3.51e-06]
[1749191177606,8.34678824,2456.2,2456.1,3.51e-06]
[1749191177896,7.02308824,2456.2,2456.1,3.51e-06]
[1749191178791,0.8139,2456.2,2456.1,3.51e-06]
[1749191178993,3.2078,2456.3,2456.1,3.51e-06]
[1749191179192,4.02168,2456.3,2456.1,0.81392351]
[1749191179496,3.2078,2456.3,2456.2,2.8523]
[1749191179802,4.02167,2456.3,2456.2,2.0384]
[1749191179990,0.81387,2456.3,2456.2,2.0384]
[1749191181091,1.48251,2456.5,2456.2,2.0384]
[1749191181293,0.6687,2456.5,2456.3,1.3476]
[1749191181688,24.684,2456.8,2456.3,1.3476]
[1749191181689,5.294,2456.9,2456.4,3.8593]
[1749191181895,0.81371,2456.8,2456.6,0.81375]
[1749191182092,0.81371,2456.8,2456.7,1.3476]
[1749191183203,0.81377,2456.6,2456.5,0.00610986]
[1749191189705,4.02155,2456.7,2456.5,1.37120986]
[1749191190206,4.02155,2456.7,2456.5,2.18500986]
[1749191191106,0.81377,2456.6,2456.5,1.37120986]
[1749191192005,4.02155,2456.7,2456.5,2.18499986]
[1749191192203,3.2078,2456.7,2456.5,1.37120986]
[1749191192400,5.9471,2457.1,2456.5,1.37120986]
[1749191192401,3.2078,2457.0,2456.5,1.37120986]
[1749191192602,0.81369,2456.9,2456.7,0.81371]
[1749191192905,0.81369,2456.9,2456.8,0.6447]
[1749191193095,0.81369,2456.9,2456.8,2.0265]
[1749191193999,4.02146,2457.0,2456.8,2.8402]
[1749191194198,0.81366,2457.0,2456.8,2.8402]
[1749191194402,0.81366,2457.0,2456.9,0.6723]
[1749191194606,0.81366,2457.0,2456.9,2.0023]
[1749191196099,0.81362,2457.1,2456.9,2.0023]
[1749191196299,0.8136,2457.1,2456.9,2.81595]
[1749191196509,0.81363,2457.0,2456.9,2.0023]
[1749191198606,8.5008,2457.3,2456.8,0.71603351]
[1749191198607,0.81367,2456.9,2456.8,0.71603351]
[1749191204413,0.81367,2456.9,2456.8,0.07133351]
[1749191204414,1.50157,2456.9,2456.8,0.07133351]
[1749191204925,0.81367,2456.9,2456.8,0.07133351]
[1749191210727,0.81367,2456.9,2456.8,1.41223351]
[1749191211336,0.81365,2457.0,2456.8,2.22592351]
[1749191212334,0.81364,2457.0,2456.8,2.22591351]
[1749191212638,3.2078,2457.1,2456.8,3.8431386]
[1749191213233,0.81367,2456.9,2456.8,3.8431386]
[1749191213538,0.81367,2456.9,2456.8,2.5022386]
[1749191214038,0.81367,2456.9,2456.8,0.07133351]
[1749191214344,0.81367,2456.9,2456.8,2.5022386]
[1749191218942,0.6513,2457.3,2456.8,2.5022386]
[1749191219144,0.81363,2457.0,2456.8,2.5022386]
[1749191219338,0.81367,2456.9,2456.8,2.5022386]
[1749191221845,3.2078,2457.1,2456.8,2.5022386]
[1749191222247,0.81365,2457.0,2456.9,2.43090509]
[1749191222452,3.2078,2457.1,2456.9,2.43090509]
[1749191222641,3.2078,2457.1,2457.0,3.24453509]
[1749191222838,3.2078,2457.1,2457.0,0.81363]
[1749191223342,3.2078,2457.1,2457.0,1.50233]
[1749191224044,0.81356,2457.3,2457.1,0.8136]
[1749191224251,0.81356,2457.3,2457.1,5.29000294]
[1749191225048,0.81351,2457.4,2457.2,3.25005294]
[1749191225254,0.81357,2457.2,2457.1,3.10990294]
[1749191226045,0.81356,2457.3,2457.1,4.40630294]
[1749191226545,0.81357,2457.2,2457.1,4.40630294]
[1749191227042,0.81357,2457.2,2457.1,3.10990294]
[1749191227242,0.8136,2457.1,2457.0,3.19653645]
[1749191227446,0.8136,2457.1,2457.0,0.76003351]
[1749191227648,0.8136,2457.1,2457.0,3.19653645]
[1749191229347,0.8136,2457.1,2457.0,2.50783645]
[1749191229541,0.8136,2457.1,2457.0,0.07133351]
[1749191229747,2.876,2457.1,2457.0,0.07133351]
[1749191229950,2.39040903,2457.1,2457.0,0.07133351]
[1749191230252,1.4914,2457.1,2457.0,0.07133351]
[1749191234656,0.6778,2457.1,2457.0,0.07133351]
[1749191234856,3.2078,2457.2,2457.0,2.50783645]
[1749191235062,4.02137,2457.2,2457.1,0.6625]
[1749191236850,4.02137,2457.2,2457.1,1.2973]
[1749191237052,0.81357,2457.2,2457.1,1.2973]
[1749191238553,0.81357,2457.2,2457.0,0.07133351]
[1749191238554,0.8136,2457.1,2457.0,0.07133351]
[1749191238761,1.5049,2457.1,2457.0,0.07133351]
[1749191239157,2.8079,2457.1,2457.0,0.07133351]
[1749191240259,1.5049,2457.1,2457.0,0.07133351]
[1749191242562,2.8603,2457.1,2457.0,0.07133351]
[1749191242960,3.78316361,2457.1,2457.0,0.07133351]
[1749191244567,2.42776361,2457.1,2457.0,0.07133351]
[1749191246270,1.73646361,2457.1,2457.0,0.07133351]
[1749191246463,0.8136,2457.1,2457.0,0.07133351]
[1749191248266,1.73625205,2457.1,2457.0,0.07133351]
[1749191250567,3.12035205,2457.1,2457.0,0.07133351]
[1749191251674,1.73625205,2457.1,2457.0,0.07133351]
[1749191252969,0.8136,2457.1,2457.0,0.07133351]
[1749191253564,4.0214,2457.1,2457.0,0.07133351]
[1749191254072,4.94415555,2457.1,2457.0,0.07133351]
[1749191254777,4.94416307,2457.1,2457.0,0.07133351]
[1749191255569,0.6586,2457.3,2457.0,0.07133351]
[1749191255870,8.4288,2457.7,2457.1,4.35880294]
[1749191256063,0.92155765,2457.6,2457.3,2.43650294]
[1749191256262,0.81347,2457.5,2457.4,1.2583]
[1749191256466,0.81345,2457.6,2457.4,1.2583]
[1749191256770,0.6353,2457.8,2457.4,1.2583]
[1749191256771,0.81339,2457.8,2457.5,1.47745]
[1749191256967,0.81339,2457.8,2457.7,2.43758667]
[1749191257163,0.81339,2457.8,2457.6,3.69588667]
[1749191257659,0.81339,2457.8,2457.7,1.2583]
[1749191258465,3.2078,2458.0,2457.7,3.69588667]
[1749191258669,0.81337,2457.9,2457.8,0.6977]
[1749191261773,0.81344,2457.6,2457.5,3.10158667]
[1749191261969,0.81344,2457.6,2457.5,3.79038667]
[1749191262169,3.2078,2458.0,2457.5,5.15708667]
[1749191262476,0.81341,2457.7,2457.5,5.15708667]
[1749191263073,0.81344,2457.6,2457.5,5.15708667]
[1749191263269,0.81344,2457.6,2457.5,2.7195]
[1749191263474,0.81342,2457.7,2457.5,2.7195]
[1749191263775,0.81342,2457.7,2457.5,5.15708667]
[1749191263970,0.81337,2457.8,2457.5,5.15708667]
[1749191264571,3.2078,2458.0,2457.5,5.15708667]
[1749191264771,3.2078,2458.3,2457.7,2.43758667]
[1749191265069,3.2078,2458.3,2457.8,2.19887986]
[1749191265070,0.81328,2458.1,2457.8,2.19887986]
[1749191265475,0.81327,2458.1,2457.9,0.6887]
[1749191265769,0.6953,2458.5,2458.0,1.3794]
[1749191266167,0.81326,2458.2,2458.1,0.6899]
[1749191268783,0.81324,2458.2,2458.1,0.6899]
[1749191269074,3.2078,2458.2,2457.9,0.6887]
[1749191269278,0.81334,2457.9,2457.8,0.00610986]
[1749191269675,3.2078,2458.2,2457.8,0.00610986]
[1749191269880,0.81334,2457.9,2457.8,0.00610986]
[1749191270674,0.81327,2458.2,2457.8,4.02724986]
[1749191270882,0.81328,2458.1,2457.9,1.3417]
[1749191271076,0.81328,2458.1,2458.0,0.6821]
[1749191273688,0.81325,2458.2,2458.0,0.6821]
[1749191273875,0.81325,2458.2,2458.0,2.0604]
[1749191274175,0.81322,2458.3,2458.0,2.87368]
[1749191274578,0.81322,2458.3,2458.1,0.07133351]
[1749191274971,0.81322,2458.3,2458.2,0.6448]
[1749191275373,3.2078,2458.5,2458.2,2.0231]
[1749191275781,0.8132,2458.3,2458.2,2.0231]
[1749191280880,0.81319,2458.4,2458.2,2.0231]
[1749191281082,9.7112,2458.9,2458.3,0.8132]
[1749191281281,0.671,2458.8,2458.3,1.2935]
[1749191281482,0.81313,2458.6,2458.4,0.6497]
[1749191281682,0.81313,2458.6,2458.4,1.9432]
[1749191282179,0.671,2458.8,2458.4,1.9432]
[1749191282385,0.81311,2458.6,2458.4,1.9432]
[1749191283289,0.81314,2458.5,2458.4,1.9432]
[1749191283489,0.81314,2458.5,2458.4,0.6497]
[1749191283879,2.03269,2458.7,2458.2,0.6448]
[1749191284079,0.69,2458.4,2458.2,3.08238667]
[1749191284284,1.5032,2458.4,2458.2,3.08238667]
[1749191285192,1.5032,2458.4,2458.3,2.43758667]
[1749191286789,0.8132,2458.3,2458.2,3.15372018]
[1749191286986,0.8132,2458.3,2458.2,2.50892018]
[1749191287188,2.2027,2458.3,2458.2,0.07133351]
[1749191291188,3.8978,2458.4,2458.2,0.07133351]
[1749191291489,0.8132,2458.3,2458.2,0.07133351]
[1749191292388,2.1344,2458.3,2458.2,0.07133351]
[1749191297598,3.05953353,2458.3,2458.2,0.07133351]
[1749191298093,2.1344,2458.3,2458.2,0.07133351]
[1749191299193,5.3422,2458.3,2458.2,0.07133351]
[1749191300090,4.021,2458.3,2458.2,0.07133351]
[1749191301896,0.8132,2458.3,2458.2,0.07133351]
[1749191303495,4.021,2458.3,2458.2,0.07133351]
[1749191313301,4.94906679,2458.3,2458.2,0.07133351]
[1749191316706,4.94906679,2458.3,2458.2,2.50892018]
[1749191318505,1.74126679,2458.3,2458.2,2.50892018]
[1749191319703,4.94906679,2458.3,2458.2,0.07133351]
[1749191319904,6.30916679,2458.3,2458.2,0.07133351]
[1749191321208,6.30916679,2458.3,2458.2,3.51e-06]
[1749191323515,10.13506679,2458.3,2458.2,3.51e-06]
[1749191326707,11.39726679,2458.3,2458.2,3.51e-06]
[1749191328814,11.41653341,2458.3,2458.2,3.51e-06]
[1749191334920,16.41653341,2458.3,2458.2,3.51e-06]
[1749191335614,0.81333,2457.9,2457.8,0.00610986]
[1749191335811,10.15446341,2457.9,2457.8,0.00610986]
[1749191336315,4.96846341,2457.9,2457.8,0.00610986]
[1749191336718,4.96734009,2457.9,2457.8,0.00610986]
[1749191337210,4.02113,2457.9,2457.8,0.00610986]
[1749191338810,0.81332,2458.0,2457.8,0.00610986]
[1749191339214,0.81332,2458.0,2457.8,1.33500986]
[1749191339414,0.81328,2458.1,2457.9,0.6335]
[1749191339605,0.81328,2458.1,2458.0,2.017]
[1749191341315,0.81328,2458.1,2458.0,0.6881]
[1749191341914,0.81328,2458.1,2458.0,2.0643]
[1749191344619,0.81328,2458.1,2458.0,2.13563351]
[1749191348423,0.81328,2458.1,2458.0,0.07133351]
[1749191348828,0.81328,2458.1,2458.0,1.41463351]
[1749191351110,4.02108,2458.1,2458.0,0.07133351]
[1749191355720,0.81328,2458.1,2458.0,0.07133351]
[1749191356225,0.81326,2458.2,2458.0,1.37133351]
[1749191356523,2.1066,2458.3,2458.0,1.37133351]
[1749191356524,0.81327,2458.1,2458.0,1.37133351]
[1749191370534,3.9022,2458.3,2458.0,1.37133351]
[1749191370737,3.9022,2458.3,2458.0,5.42416165]
[1749191370941,4.71541,2458.3,2458.1,3.23954814]
[1749191371136,4.71541,2458.3,2458.1,4.55024814]
[1749191371341,4.5571,2458.3,2458.2,1.3757]
[1749191375644,3.7439,2458.3,2458.2,1.3757]
[1749191376042,4.5571,2458.3,2458.2,1.44703351]
[1749191376243,3.7439,2458.3,2458.2,1.44703351]
[1749191376541,4.5571,2458.3,2458.2,1.44703351]
[1749191377345,3.1315,2458.3,2458.2,2.26027351]
[1749191377841,1.0249,2458.3,2458.2,2.26027351]
[1749191378439,1.0249,2458.3,2458.2,1.44703351]
[1749191378645,1.8381,2458.3,2458.2,1.44703351]
[1749191380141,1.0249,2458.3,2458.2,1.44703351]
[1749191381147,1.0249,2458.3,2458.2,2.26027351]
[1749191381645,0.9404,2458.3,2458.2,2.26027351]
[1749191382150,0.9404,2458.3,2458.2,1.44703351]
[1749191382344,0.9404,2458.3,2458.2,2.26027351]
[1749191390651,0.9404,2458.3,2458.2,0.88457351]
[1749191390851,2.1079,2458.4,2458.2,0.88457351]
[1749191392248,2.1079,2458.4,2458.2,0.07133351]
[1749191392249,2.92108,2458.4,2458.2,0.07133351]
[1749191392453,4.27898,2458.4,2458.2,0.88457351]
[1749191393047,4.27898,2458.4,2458.2,0.07133351]
[1749191394452,4.27898,2458.4,2458.2,0.88456351]
[1749191394654,4.27898,2458.4,2458.2,0.07133351]
[1749191394950,2.92108,2458.4,2458.2,0.07133351]
[1749191397153,2.1079,2458.4,2458.2,0.07133351]
[1749191397344,2.92109,2458.4,2458.2,0.07133351]
[1749191397547,4.29169,2458.4,2458.2,0.07133351]
[1749191397951,4.44959,2458.4,2458.2,0.07133351]
[1749191399257,5.38779,2458.4,2458.2,0.07133351]
[1749191399754,0.8132,2458.3,2458.2,0.07133351]
[1749191400651,2.1502,2458.3,2458.2,0.07133351]
[1749191400857,8.10978195,2458.3,2458.2,0.07133351]
[1749191401558,3.10978195,2458.3,2458.2,0.07133351]
[1749191402057,3.10983172,2458.3,2458.2,0.07133351]
[1749191403862,6.4118,2458.4,2458.2,0.07133351]
[1749191403863,3.204,2458.4,2458.2,0.07133351]
[1749191404063,3.204,2458.4,2458.3,0.6437]
[1749191405356,0.8132,2458.3,2458.2,0.07133351]
[1749191405560,2.7957,2458.3,2458.2,0.07133351]
[1749191405860,3.75463913,2458.3,2458.2,0.07133351]
[1749191406062,3.75467655,2458.3,2458.2,0.07133351]
[1749191406755,2.7957,2458.3,2458.2,0.07133351]
[1749191406961,3.75445982,2458.3,2458.2,0.07133351]
[1749191408657,1.4881,2458.3,2458.2,0.07133351]
[1749191409759,2.8316,2458.3,2458.2,0.07133351]
[1749191409962,0.8132,2458.3,2458.2,0.07133351]
[1749191410161,1.77174787,2458.3,2458.2,0.07133351]
[1749191410364,0.8132,2458.3,2458.2,0.07133351]
[1749191410658,3.9014,2458.4,2458.2,0.07133351]
[1749191411053,4.71457,2458.4,2458.3,0.6868]
[1749191411959,4.55667,2458.4,2458.3,0.6868]
[1749191412364,3.7435,2458.4,2458.3,0.6868]
[1749191412559,4.55667,2458.4,2458.3,0.6868]
[1749191418862,3.7435,2458.4,2458.3,0.6868]
[1749191419460,3.7435,2458.4,2458.3,1.9929]
[1749191419660,3.7435,2458.4,2458.3,2.8061]
[1749191420766,3.7435,2458.4,2458.3,2.87743351]
[1749191422862,4.55667,2458.4,2458.3,2.06423351]
[1749191423563,3.7435,2458.4,2458.3,2.87743351]
[1749191425365,4.55667,2458.4,2458.3,2.06423351]
[1749191425771,4.55667,2458.4,2458.3,2.87743351]
[1749191425967,4.55667,2458.4,2458.3,2.06423351]
[1749191426867,3.1307,2458.4,2458.3,2.87743351]
[1749191428070,3.94387,2458.4,2458.3,2.87743351]
[1749191428469,3.1307,2458.4,2458.3,2.87743351]
[1749191428959,3.94387,2458.4,2458.3,2.87743351]
[1749191429165,3.1307,2458.4,2458.3,2.87743351]
[1749191434371,3.1307,2458.4,2458.3,6.11698165]
[1749191435971,3.0461,2458.4,2458.3,6.11698165]
[1749191443583,3.0461,2458.4,2458.3,2.87743351]
[1749191444779,3.0461,2458.4,2458.3,7.87743351]
[1749191445174,3.0461,2458.4,2458.3,11.89835365]
[1749191445385,3.0461,2458.4,2458.3,6.89835365]
[1749191445775,3.0461,2458.4,2458.3,7.2204581]
[1749191445981,3.0461,2458.4,2458.3,6.89835365]
[1749191448280,3.0461,2458.4,2458.3,2.87743351]
[1749191448486,3.0461,2458.4,2458.3,7.99243351]
[1749191448686,3.6897,2458.4,2458.3,6.68633351]
[1749191449081,3.6897,2458.4,2458.3,9.93377314]
[1749191449780,3.6897,2458.4,2458.3,6.68633351]
[1749191449979,3.6897,2458.4,2458.3,9.93395434]
[1749191450176,3.6897,2458.4,2458.3,6.68633351]
[1749191450385,3.6897,2458.4,2458.3,9.93390577]
[1749191450579,3.6897,2458.4,2458.3,6.68633351]
[1749191450981,3.6897,2458.4,2458.3,9.93396931]
[1749191451183,3.6897,2458.4,2458.3,6.68633351]
[1749191451790,3.6897,2458.4,2458.3,9.89413351]
[1749191452090,3.6897,2458.4,2458.3,13.14178851]
[1749191452891,3.6897,2458.4,2458.3,9.89413351]
[1749191454284,3.0461,2458.4,2458.3,9.89413351]
[1749191458484,3.7228,2458.4,2458.3,9.89413351]
[1749191459088,3.7228,2458.4,2458.3,9.20733351]
[1749191460495,3.0461,2458.4,2458.3,9.20733351]
[1749191461896,3.0461,2458.4,2458.3,13.22825365]
[1749191462792,0.6588,2459.3,2458.3,14.44799365]
[1749191462988,0.6587,2459.2,2459.1,0.81294]
[1749191463292,0.6587,2459.2,2459.1,5.92794]
[1749191463590,0.348051,2459.2,2459.1,9.17646272]
[1749191463794,2.77984,2459.7,2459.1,6.4295]
[1749191463992,1.2709,2459.6,2459.2,3.24983053]
[1749191466190,1.2709,2459.5,2459.4,0.81283]
[1749191472390,1.2709,2459.5,2459.3,3.2078]
[1749191472597,0.81287,2459.3,2459.2,0.07744337]
[1749191473095,2.80877,2459.3,2459.2,0.07744337]
[1749191476793,7.80877,2459.3,2459.2,0.07744337]
[1749191477000,8.76534542,2459.3,2459.2,0.07744337]
[1749191477393,0.81306,2458.8,2458.6,0.8131]
[1749191477595,2.03227,2459.2,2459.1,0.81294]
[1749191477596,0.6817,2459.2,2459.1,0.81294]
[1749191477797,0.6817,2459.2,2459.0,0.81294]
[1749191478193,0.6817,2459.2,2458.8,5.7542]
[1749191478398,0.68780986,2459.2,2459.0,0.81296]
[1749191478693,0.00610986,2459.2,2459.1,0.81294]
[1749191478904,0.00610986,2459.2,2459.1,1.47944]
[1749191480402,0.00610986,2459.2,2459.1,2.76764]
[1749191482501,3.2078,2460.1,2459.6,0.81277]
[1749191482695,3.2078,2460.1,2459.1,5.19842067]
[1749191482696,0.636,2459.9,2459.5,3.2078]
[1749191482896,1.44868,2459.9,2459.6,2.16656]
[1749191483798,0.81271,2459.8,2459.6,1.3538]
[1749191484702,1.44868,2459.9,2459.6,1.3538]
[1749191485001,0.81271,2459.8,2459.6,1.3538]
[1749191485500,0.636,2459.9,2459.6,2.16657]
[1749191485501,1.44869,2459.9,2459.6,2.16657]
[1749191485701,1.44869,2459.9,2459.6,3.56057]
[1749191486510,0.81271,2459.8,2459.6,3.56057]
[1749191487209,0.636,2459.9,2459.6,2.7478]
[1749191487505,0.81272,2459.8,2459.6,2.7478]
[1749191487812,1.44869,2459.9,2459.6,3.56056]
[1749191488313,0.81271,2459.8,2459.6,3.56056]
[1749191489015,0.636,2459.9,2459.6,1.3538]
[1749191489217,0.81282,2459.5,2459.4,5.095]
[1749191489509,0.81279,2459.6,2459.4,5.095]
[1749191489908,0.8128,2459.5,2459.4,5.095]
[1749191491409,0.81279,2459.6,2459.4,5.095]
[1749191491912,1.2858,2459.8,2459.4,5.095]
[1749191492104,0.81278,2459.6,2459.4,6.3852]
[1749191492308,0.636,2459.9,2459.4,7.19802]
[1749191492611,0.81276,2459.7,2459.5,3.2078]
[1749191492909,0.81272,2459.8,2459.5,4.498]
[1749191493115,0.81272,2459.8,2459.6,1.45596]
[1749191493317,0.81272,2459.8,2459.6,2.74616]
[1749191493505,0.81272,2459.8,2459.7,0.6576]
[1749191495821,0.81272,2459.8,2459.7,0.72893351]
[1749191497419,0.81272,2459.8,2459.7,0.07133351]
[1749191497420,5.28492,2459.8,2459.7,0.07133351]
[1749191498112,0.81272,2459.8,2459.7,0.07133351]
[1749191501120,0.81272,2459.8,2459.7,0.72823351]
[1749191504521,0.81272,2459.8,2459.7,0.07133351]
[1749191504717,2.20462,2459.8,2459.7,0.07133351]
[1749191506625,0.81272,2459.8,2459.7,0.07133351]
[1749191509120,0.81272,2459.8,2459.7,0.73133351]
[1749191513636,0.636,2459.9,2459.7,0.73133351]
[1749191513835,0.81269,2459.9,2459.7,2.81285351]
[1749191514225,0.81269,2459.9,2459.8,1.2688]
[1749191514629,3.8651,2460.1,2459.8,1.2688]
[1749191514838,0.81267,2459.9,2459.8,1.2688]
[1749191515237,0.81265,2460.0,2459.8,2.08148]
[1749191515536,0.81265,2460.0,2459.8,1.2688]
[1749191515938,0.6573,2460.1,2459.8,1.2688]
[1749191516240,0.6573,2460.1,2459.7,7.18285418]
[1749191516945,0.81268,2459.9,2459.7,7.99558418]
[1749191517641,0.81268,2459.9,2459.7,9.25658418]
[1749191518537,0.6573,2460.1,2459.7,9.25658418]
[1749191518840,0.81268,2459.9,2459.7,6.04878418]
[1749191519744,0.81268,2459.9,2459.7,5.23605418]
[1749191521343,0.81268,2459.9,2459.7,6.04878418]
[1749191521544,0.81268,2459.9,2459.7,5.23605418]
[1749191521940,0.81268,2459.9,2459.7,6.04878418]
[1749191522946,0.6573,2460.1,2459.7,5.23605418]
[1749191523245,0.81268,2459.9,2459.7,6.04878418]
[1749191523747,0.8127,2459.8,2459.7,1.99233351]
[1749191523940,0.81269,2459.9,2459.7,1.99233351]
[1749191524445,0.81266,2460.0,2459.8,0.81269]
[1749191524648,3.2078,2460.3,2459.8,1.3296]
[1749191524845,3.2078,2460.9,2460.0,3.2078]
[1749191525041,1.60623169,2460.8,2460.3,3.2078]
[1749191525343,0.81251,2460.4,2460.3,3.2078]
[1749191525543,0.81254,2460.3,2460.2,0.00609707]
[1749191525744,6.90510407,2460.3,2460.2,0.00609707]
[1749191525944,11.90510407,2460.3,2460.2,0.00609707]
[1749191526445,6.90510407,2460.3,2460.2,0.00609707]
[1749191526838,16.98310407,2460.3,2460.2,7.07e-06]
[1749191527038,16.98310407,2460.3,2459.7,0.07133351]
[1749191527039,0.8127,2459.8,2459.7,0.07133351]
[1749191527239,4.97808577,2459.8,2459.7,0.07133351]
[1749191527435,9.0205,2459.8,2459.7,0.07133351]
[1749191527642,4.685,2459.8,2459.7,0.07133351]
[1749191535045,3.8723,2459.8,2459.7,0.07133351]
[1749191535247,0.8127,2459.8,2459.7,0.07133351]
[1749191536545,4.0205,2459.8,2459.7,0.07133351]
[1749191536941,4.97749612,2459.8,2459.7,0.07133351]
[1749191540546,4.0205,2459.8,2459.7,0.07133351]
[1749191541454,4.97702089,2459.8,2459.7,0.07133351]
[1749191541649,4.0205,2459.8,2459.7,0.07133351]
[1749191542052,0.8127,2459.8,2459.7,0.07133351]
[1749191542450,1.4633,2459.8,2459.7,0.07133351]
[1749191545860,2.41937749,2459.8,2459.7,0.07133351]
[1749191547062,1.4633,2459.8,2459.7,0.07133351]
[1749191550669,2.41957862,2459.8,2459.7,0.07133351]
[1749191550968,3.76277862,2459.8,2459.7,0.07133351]
[1749191551676,0.95627862,2459.8,2459.7,4.09187351]
[1749191551866,0.6951,2460.3,2459.7,3.27913351]
[1749191552070,0.95617911,2460.2,2459.7,3.27913351]
[1749191552375,0.8126,2460.2,2459.8,2.18088]
[1749191552674,0.81257,2460.2,2459.9,1.3682]
[1749191552866,0.81261,2460.1,2460.0,0.6865]
[1749191553269,0.81261,2460.1,2460.0,2.0547]
[1749191554279,3.21384737,2460.5,2460.0,2.0547]
[1749191554468,0.81254,2460.3,2460.1,1.2904]
[1749191554967,4.02634737,2460.5,2460.2,1.45447]
[1749191555363,4.02634737,2460.5,2460.3,1.2904]
[1749191555565,0.81251,2460.4,2460.3,1.2904]
[1749191555771,3.21384737,2460.5,2460.3,1.2904]
[1749191555976,3.21384737,2460.5,2460.3,2.10294]
[1749191556471,3.21384737,2460.5,2460.3,1.2904]
[1749191556671,3.21384737,2460.5,2460.3,2.10293]
[1749191557171,3.21384737,2460.5,2460.3,2.10294]
[1749191557366,4.02634737,2460.5,2460.3,1.2904]
[1749191557571,0.81251,2460.4,2460.3,1.2904]
[1749191557773,0.81853737,2460.5,2460.3,1.2904]
[1749191558173,0.81251,2460.4,2460.3,1.2904]
[1749191559476,0.81254,2460.3,2460.2,5.7039]
[1749191561378,0.67634737,2460.5,2460.2,5.7039]
[1749191561677,0.81253,2460.4,2460.2,5.7039]
[1749191561878,0.81853737,2460.5,2460.2,7.84316]
[1749191562081,0.81853737,2460.5,2460.3,1.3267]
[1749191562969,0.81853737,2460.5,2460.3,2.13924]
[1749191563174,0.81853737,2460.5,2460.3,1.3267]
[1749191564779,0.00604737,2460.5,2460.3,1.3267]
[1749191564969,0.81251,2460.4,2460.3,1.3267]
[1749191565377,0.81254,2460.3,2460.2,5.7039]
[1749191568076,0.81254,2460.3,2460.2,0.6419]
[1749191570578,2.03132,2460.4,2459.7,3.2078]
[1749191570784,0.81267,2460.0,2459.8,5.6984]
[1749191570979,0.81267,2460.0,2459.8,7.0226]